fUST/lending_fUST_20240430
["ID","MTS","AMOUNT","RATE_DAILY","PERIOD"]
[324948255,1714457476650,-7971.4,0.00035068,7]
[324948256,1714457476659,-152.90057792,0.00035134,7]
[324948257,1714457476668,-155.21372883,0.00035149,7]
[324948258,1714457476677,-152.90057792,0.0003529,7]
[324948259,1714457476686,-152.90057792,0.00035306,7]
[324948260,1714457476696,-573.99,0.00035342,7]
[324948261,1714457476705,-434.19811263,0.00035342,7]
[324948262,1714457476714,-500.0,0.00035342,7]
[324948263,1714457476723,-899.84,0.00035342,7]
[324948264,1714457476733,-500.0,0.00035342,7]
[324948265,1714457476742,-513.6,0.00035342,7]
[324948266,1714457476751,-605.54,0.00035342,7]
[324948267,1714457476760,-532.84,0.00035342,7]
[324948268,1714457476770,-505.64,0.00035342,7]
[324948269,1714457476779,-603.01,0.00035342,7]
[324948270,1714457476788,-500.0,0.00035342,7]
[324948271,1714457476797,-500.0,0.00035342,7]
[324948272,1714457476808,-500.0,0.00035342,7]
[324948273,1714457476817,-500.0,0.00035342,7]
[324948274,1714457476826,-500.0,0.00035342,7]
[324948275,1714457476835,-500.0,0.00035342,7]
[324948276,1714457476844,-518.31,0.00035342,7]
[324948277,1714457476853,-500.0,0.00035342,7]
[324948278,1714457476863,-500.0,0.00035342,30]
[324948279,1714457476872,-500.0,0.00035342,7]
[324948280,1714457476881,-799.99,0.00035342,7]
[324948281,1714457476891,-874.16,0.00035342,7]
[324948282,1714457476900,-974.74,0.00035342,7]
[324948283,1714457476910,-764.82,0.00035342,7]
[324948284,1714457476920,-1008.03,0.00035342,7]
[324948285,1714457476929,-477.76086263,0.00035342,7]
[324948286,1714457476939,-599.82,0.00035342,7]
[324948287,1714457476948,-500.0,0.00035342,7]
[324948288,1714457476957,-513.93,0.00035342,7]
[324948289,1714457476966,-500.0,0.00035342,2]
[324948290,1714457476975,-871.87,0.00035342,7]
[324948291,1714457476984,-716.63,0.00035342,7]
[324948292,1714457476994,-300.0,0.00035342,7]
[324948293,1714457477004,-500.0,0.00035342,7]
[324948294,1714457477015,-500.89672697,0.00035342,7]
[324948295,1714457477024,-356.6360745,0.00035342,7]
[324948296,1714457477033,-500.0,0.00035342,7]
[324948297,1714457477043,-500.0,0.00035342,7]
[324948298,1714457477053,-1006.99,0.00035342,7]
[324948299,1714457477063,-500.0,0.00035342,7]
[324948300,1714457477072,-500.0,0.00035342,7]
[324948301,1714457477082,-500.0,0.00035342,7]
[324948302,1714457477092,-559.33,0.00035342,7]
[324948303,1714457477101,-500.0,0.00035342,7]
[324948304,1714457477112,-509.77,0.00035342,7]
[324948305,1714457477121,-562.19195369,0.00035342,7]
[324948306,1714457477131,-728.48,0.00035342,7]
[324948307,1714457477140,-638.59,0.00035342,7]
[324948308,1714457477149,-890.43,0.00035342,7]
[324948309,1714457477159,-500.0,0.00035342,7]
[324948310,1714457477169,-460.97105176,0.00035342,7]
[324948311,1714457477178,-500.0,0.00035342,7]
[324948312,1714457477187,-500.0,0.00035342,7]
[324948313,1714457477197,-672.86,0.00035342,7]
[324948314,1714457477207,-500.0,0.00035342,7]
[324948315,1714457477217,-363.46819856,0.00035342,7]
[324948316,1714457477227,-645.5,0.00035342,7]
[324948317,1714457477237,-500.0,0.00035342,7]
[324948318,1714457477247,-720.2,0.00035342,7]
[324948319,1714457477257,-500.0,0.00035342,7]
[324948320,1714457477267,-500.0,0.00035342,7]
[324948321,1714457477277,-503.98,0.00035342,7]
[324948322,1714457477286,-500.0,0.00035342,7]
[324948323,1714457477295,-500.0,0.00035342,7]
[324948324,1714457477310,-500.0,0.00035342,7]
[324948325,1714457477320,-652.87,0.00035342,7]
[324948326,1714457477329,-893.45,0.00035342,7]
[324948327,1714457477339,-630.12,0.00035342,7]
[324948328,1714457477348,-500.0,0.00035342,7]
[324948329,1714457477358,-500.0,0.00035342,7]
[324948330,1714457477369,-890.42,0.00035342,7]
[324948331,1714457477381,-892.37,0.00035342,7]
[324948332,1714457477391,-500.0,0.00035342,7]
[324948333,1714457477401,-571.67,0.00035342,7]
[324948334,1714457477411,-657.48,0.00035342,7]
[324948335,1714457477420,-728.25,0.00035342,7]
[324948336,1714457477430,-639.64,0.00035342,7]
[324948337,1714457477439,-500.0,0.00035342,7]
[324948338,1714457477449,-565.58,0.00035342,7]
[324948339,1714457477458,-512.91,0.00035342,7]
[324948340,1714457477467,-555.04,0.00035342,7]
[324948341,1714457477477,-707.6,0.00035342,7]
[324948342,1714457477488,-500.0,0.00035342,7]
[324948343,1714457477497,-539.55,0.00035342,7]
[324948344,1714457477507,-500.0,0.00035342,7]
[324948345,1714457477516,-500.0,0.00035342,7]
[324948346,1714457477526,-820.95,0.00035342,7]
[324948347,1714457477535,-821.44,0.00035342,7]
[324948348,1714457477545,-685.27,0.00035342,7]
[324948349,1714457477557,-500.0,0.00035342,7]
[324948350,1714457477566,-500.0,0.00035342,7]
[324948351,1714457477576,-928.29,0.00035342,7]
[324948352,1714457477586,-787.88,0.00035342,7]
[324948353,1714457477595,-554.17,0.00035342,7]
[324948354,1714457477604,-1095.77,0.00035342,7]
[324948355,1714457477614,-500.0,0.00035342,7]
[324948356,1714457477624,-481.27021067,0.00035342,7]
[324948357,1714457477634,-985.67,0.00035342,7]
[324948358,1714457477643,-500.0,0.00035342,7]
[324948359,1714457477653,-500.0,0.00035342,7]
[324948360,1714457477662,-500.0,0.00035342,7]
[324948361,1714457477671,-500.0,0.00035342,7]
[324948362,1714457477681,-500.0,0.00035342,7]
[324948363,1714457477690,-577.75,0.00035342,7]
[324948364,1714457477699,-500.0,0.00035342,7]
[324948365,1714457477708,-500.0,0.00035342,7]
[324948366,1714457477718,-654.2,0.00035342,7]
[324948367,1714457477804,-500.0,0.00035342,7]
[324948368,1714457477813,-500.0,0.00035342,7]
[324948369,1714457477823,-530.17,0.00035342,7]
[324948370,1714457477832,-556.7,0.00035342,7]
[324948371,1714457477841,-611.4,0.00035342,7]
[324948372,1714457477850,-500.0,0.00035342,7]
[324948373,1714457477860,-556.41,0.00035342,7]
[324948374,1714457477870,-786.77,0.00035342,7]
[324948375,1714457477879,-1136.93,0.00035342,7]
[324948376,1714457477890,-725.92,0.00035342,7]
[324948377,1714457477899,-544.02,0.00035342,7]
[324948378,1714457477908,-500.0,0.00035342,7]
[324948379,1714457477918,-506.78,0.00035342,7]
[324948380,1714457477927,-545.68,0.00035342,7]
[324948381,1714457477937,-527.95,0.00035342,7]
[324948382,1714457477946,-714.47,0.00035342,7]
[324948383,1714457477956,-7971.4,0.00035342,7]
[324948384,1714457477965,-413.0,0.00035441,2]
[324948385,1714457477974,-157.73975448,0.00035519,7]
[324948386,1714457477984,-573.99,0.00035616,7]
[324948387,1714457477993,-500.0,0.00035616,7]
[324948388,1714457478002,-899.84,0.00035616,7]
[324948389,1714457478012,-500.0,0.00035616,7]
[324948390,1714457478021,-513.6,0.00035616,7]
[324948391,1714457478030,-605.54,0.00035616,7]
[324948392,1714457478039,-532.84,0.00035616,7]
[324948393,1714457478048,-505.64,0.00035616,7]
[324948394,1714457478059,-603.01,0.00035616,7]
[324948395,1714457478068,-500.0,0.00035616,7]
[324948396,1714457478078,-500.0,0.00035616,7]
[324948397,1714457478087,-500.0,0.00035616,7]
[324948398,1714457478096,-500.0,0.00035616,7]
[324948399,1714457478105,-500.0,0.00035616,7]
[324948400,1714457478115,-500.0,0.00035616,7]
[324948401,1714457478124,-518.31,0.00035616,7]
[324948402,1714457478134,-500.0,0.00035616,7]
[324948403,1714457478143,-500.0,0.00035616,30]
[324948404,1714457478153,-500.0,0.00035616,7]
[324948405,1714457478162,-799.99,0.00035616,7]
[324948406,1714457478171,-874.16,0.00035616,7]
[324948407,1714457478181,-974.74,0.00035616,7]
[324948408,1714457478190,-764.82,0.00035616,7]
[324948409,1714457478199,-1008.03,0.00035616,7]
[324948410,1714457478209,-599.82,0.00035616,7]
[324948411,1714457478218,-500.0,0.00035616,7]
[324948412,1714457478227,-513.93,0.00035616,7]
[324948413,1714457478236,-500.0,0.00035616,2]
[324948414,1714457478245,-871.87,0.00035616,7]
[324948415,1714457478255,-716.63,0.00035616,7]
[324948416,1714457478264,-300.0,0.00035616,7]
[324948417,1714457478273,-500.0,0.00035616,7]
[324948418,1714457478282,-500.0,0.00035616,7]
[324948419,1714457478292,-500.0,0.00035616,7]
[324948420,1714457478302,-1006.99,0.00035616,7]
[324948421,1714457478312,-500.0,0.00035616,7]
[324948422,1714457478322,-500.0,0.00035616,7]
[324948423,1714457478332,-500.0,0.00035616,7]
[324948424,1714457478341,-559.33,0.00035616,7]
[324948425,1714457478351,-500.0,0.00035616,7]
[324948426,1714457478361,-509.77,0.00035616,7]
[324948427,1714457478372,-728.48,0.00035616,7]
[324948428,1714457478383,-638.59,0.00035616,7]
[324948429,1714457478393,-890.43,0.00035616,7]
[324948430,1714457478402,-500.0,0.00035616,7]
[324948431,1714457478413,-500.0,0.00035616,7]
[324948432,1714457478423,-197.31769286,0.00035616,7]
[324948433,1714457478433,-672.86,0.00035616,7]
[324948434,1714457478442,-500.0,0.00035616,7]
[324948435,1714457478452,-645.5,0.00035616,7]
[324948436,1714457478462,-500.0,0.00035616,7]
[324948437,1714457478471,-720.2,0.00035616,7]
[324948438,1714457478481,-500.0,0.00035616,7]
[324948439,1714457478491,-500.0,0.00035616,7]
[324948440,1714457478500,-503.98,0.00035616,7]
[324948441,1714457478509,-500.0,0.00035616,7]
[324948442,1714457478519,-500.0,0.00035616,7]
[324948443,1714457478529,-500.0,0.00035616,7]
[324948444,1714457478538,-652.87,0.00035616,7]
[324948445,1714457478548,-893.45,0.00035616,7]
[324948446,1714457478560,-630.12,0.00035616,7]
[324948447,1714457478569,-500.0,0.00035616,7]
[324948448,1714457478578,-500.0,0.00035616,7]
[324948449,1714457478588,-890.42,0.00035616,7]
[324948450,1714457478597,-892.37,0.00035616,7]
[324948451,1714457478607,-500.0,0.00035616,7]
[324948452,1714457478616,-571.67,0.00035616,7]
[324948453,1714457478625,-657.48,0.00035616,7]
[324948454,1714457478635,-728.25,0.00035616,7]
[324948455,1714457478645,-639.64,0.00035616,7]
[324948456,1714457478654,-500.0,0.00035616,7]
[324948457,1714457478664,-565.58,0.00035616,7]
[324948458,1714457478673,-327.34854334,0.00035616,7]
[324948459,1714457479046,-669.64,0.00032602,2]
[324948460,1714457479056,-669.64,0.00032876,2]
[324948461,1714457479066,-669.64,0.0003315,7]
[324948462,1714457479076,-669.64,0.00033424,7]
[324948463,1714457479086,-669.64,0.00033698,7]
[324948464,1714457479095,-669.64,0.00033972,7]
[324948465,1714457479105,-500.0,0.00034246,7]
[324948466,1714457479115,-669.64,0.00034246,7]
[324948467,1714457479124,-500.0,0.0003452,7]
[324948468,1714457479133,-500.0,0.0003452,7]
[324948469,1714457479143,-1524.12,0.00034794,7]
[324948470,1714457479153,-500.0,0.00034794,7]
[324948471,1714457479163,-500.0,0.00034794,7]
[324948472,1714457479172,-500.0,0.00035068,7]
[324948473,1714457479182,-1524.12,0.00035068,7]
[324948474,1714457479191,-500.0,0.00035068,7]
[324948475,1714457479201,-500.0,0.00035342,7]
[324948476,1714457479211,-1128.95936534,0.00035342,7]
[324948527,1714458638928,-201.980854,0.00011889,2]
[324948528,1714458638938,-2626.7215223,0.00012549,2]
[324948529,1714458638947,-300.0,0.0001255,2]
[324948530,1714458638957,-300.0,0.0001255,2]
[324948531,1714458638967,-2807.5535999,0.0001255,2]
[324948532,1714458638976,-15674.62704148,0.00012551,2]
[324948533,1714458638985,-7874.43916616,0.00012551,2]
[324948534,1714458638996,-24900.0,0.00012556,2]
[324948535,1714458639005,-1035.93162688,0.000129,2]
[324948536,1714458639013,-18347.5406635,0.00013515,2]
[324948537,1714458639023,-265.2198053,0.00013699,2]
[324948538,1714458639032,-250.0,0.00013721,2]
[324948539,1714458639041,-420.0,0.00013769,2]
[324948540,1714458639050,-420.0,0.00013805,2]
[324948541,1714458639060,-1511.7664589,0.00014,2]
[324948542,1714458639069,-168.563871,0.00014517,2]
[324948543,1714458639078,-2101.40475036,0.00015,2]
[324948544,1714458639088,-583.0,0.00015107,2]
[324948545,1714458639098,-180.0,0.00015186,2]
[324948546,1714458639109,-162.36950651,0.0001577,2]
[324948547,1714458639118,-272.83575254,0.000165,2]
[324948548,1714458639128,-1035.93162684,0.00016868,2]
[324948549,1714458639137,-189.3964787,0.00018,2]
[324948550,1714458639147,-603.84859883,0.000185,2]
[324948551,1714458639157,-2039.10903836,0.00018727,2]
[324948552,1714458639166,-189.03839214,0.00018727,2]
[324948553,1714458639176,-1410.37860263,0.00018994,2]
[324948554,1714458639186,-976.9851614,0.00018994,2]
[324948555,1714458639197,-2589.60801009,0.00018994,2]
[324948556,1714458639207,-2519.6177395,0.00018994,2]
[324948557,1714458639218,-212.22553252,0.00018995,2]
[324948558,1714458639227,-948.46578514,0.00019,2]
[324948559,1714458639236,-219.4239484,0.00019178,2]
[324948560,1714458639246,-154.77551748,0.00019178,2]
[324948561,1714458639255,-405.61707614,0.00019178,2]
[324948562,1714458639265,-160.386525,0.00019178,2]
[324948563,1714458639275,-162.3695065,0.00019199,2]
[324948564,1714458639285,-44444.0,0.000192,2]
[324948565,1714458639295,-410262.71925048,0.000193,2]
[324948566,1714458639304,-548.37810769,0.00019997,2]
[324948567,1714458639314,-155.10750708,0.00019997,2]
[324948568,1714458639323,-156.38107824,0.00019998,2]
[324948569,1714458639334,-1547.90345751,0.00019999,2]
[324948570,1714458639344,-87348.06475574,0.0002,2]
[324948571,1714458639353,-165.42689745,0.0002,2]
[324948572,1714458639362,-241.71320654,0.0002,2]
[324948573,1714458639372,-400.0,0.0002,2]
[324948574,1714458639381,-80000.0,0.0002,2]
[324948575,1714458639391,-278.367607,0.0002,2]
[324948576,1714458639400,-329.99389325,0.0002,2]
[324948577,1714458639410,-67426.19859378,0.0002,2]
[324948578,1714458639421,-18866.78809066,0.0002,2]
[324948579,1714458639430,-525.07533493,0.0002,4]
[324948580,1714458639439,-154.78330338,0.0002,2]
[324948581,1714458639449,-154.78330338,0.0002,2]
[324948582,1714458639458,-200.0,0.0002,2]
[324948583,1714458639467,-155.59987296,0.00020913,2]
[324948584,1714458639477,-1035.93162684,0.00021285,2]
[324948585,1714458639486,-10000.0,0.00021918,2]
[324948586,1714458639638,-835.27,0.00021918,2]
[324948587,1714458639648,-331.46,0.00021918,2]
[324948588,1714458639658,-276.21,0.00021918,2]
[324948589,1714458639667,-305.6041892,0.00022,2]
[324948590,1714458639677,-305.625555,0.00022466,2]
[324948591,1714458639686,-700.424454,0.00022466,2]
[324948592,1714458639696,-205.745059,0.00022466,2]
[324948593,1714458639705,-1370.77204514,0.00023,2]
[324948594,1714458639715,-693.45686249,0.00024,2]
[324948595,1714458639725,-500.0,0.00024657,2]
[324948596,1714458639734,-380.0,0.00024658,2]
[324948597,1714458639748,-152.79752245,0.00024682,2]
[324948598,1714458639759,-155.21372883,0.00024684,2]
[324948599,1714458639768,-155.21372883,0.00024943,2]
[324948600,1714458639777,-154.78330338,0.00025,2]
[324948601,1714458639789,-301.24211674,0.00025,2]
[324948602,1714458639799,-154.78330338,0.00025,2]
[324948603,1714458639808,-154.78330338,0.00025,2]
[324948604,1714458639819,-152.79752245,0.0002552,2]
[324948605,1714458639830,-1035.93162684,0.00025701,2]
[324948606,1714458639839,-272.30788509,0.00025891,2]
[324948607,1714458639849,-157.73975449,0.0002603,2]
[324948608,1714458639858,-153.89214861,0.00026353,2]
[324948609,1714458639869,-155.21372883,0.00026465,2]
[324948610,1714458639879,-272.30788509,0.00026532,2]
[324948611,1714458639890,-272.30788509,0.00026551,2]
[324948612,1714458639900,-5000.0,0.000269,2]
[324948613,1714458639911,-8529.21181525,0.00027,2]
[324948614,1714458639922,-272.30788509,0.00027055,2]
[324948615,1714458639932,-166.666666,0.00027397,2]
[324948616,1714458639941,-154.78330338,0.000274,2]
[324948617,1714458639950,-272.30788509,0.00027449,2]
[324948618,1714458639960,-417.0,0.00027779,2]
[324948619,1714458639969,-152.90057792,0.00027878,2]
[324948620,1714458639979,-152.90057792,0.00027901,2]
[324948621,1714458639988,-152.90057792,0.00027902,2]
[324948622,1714458639998,-272.30788509,0.00027955,2]
[324948623,1714458640007,-157.73975449,0.0002799,2]
[324948624,1714458640017,-220.93587945,0.00028,2]
[324948625,1714458640027,-153.89214861,0.00028019,2]
[324948626,1714458640037,-166.666666,0.00028038,2]
[324948627,1714458640047,-150.0,0.00028244,3]
[324948628,1714458640056,-305.625555,0.00028493,2]
[324948629,1714458640066,-700.424454,0.00028493,2]
[324948630,1714458640075,-205.745059,0.00028493,2]
[324948631,1714458640085,-157.73975449,0.00028506,2]
[324948632,1714458640094,-166.666666,0.00028679,2]
[324948633,1714458640103,-152.79752245,0.00028781,2]
[324948634,1714458640113,-272.30788509,0.00028873,2]
[324948635,1714458640122,-272.30788509,0.00029109,2]
[324948636,1714458640131,-166.666666,0.00029321,2]
[324948637,1714458640140,-272.30788509,0.00029379,2]
[324948638,1714458640150,-272.30788509,0.00029513,2]
[324948639,1714458640159,-150.0,0.00029661,3]
[324948640,1714458640169,-152.90057792,0.00029788,2]
[324948641,1714458640178,-152.79752245,0.00029914,2]
[324948642,1714458640187,-166.666666,0.00029962,2]
[324948643,1714458640197,-154.78330338,0.0003,4]
[324948644,1714458640206,-1330.0170423,0.0003,4]
[324948645,1714458640216,-588.0,0.0003,2]
[324948646,1714458640225,-338.0,0.0003,2]
[324948648,1714458640234,-1035.93162684,0.00030118,4]
[324948650,1714458640244,-166.666666,0.00030603,2]
[324948652,1714458640254,-417.0,0.00030779,2]
[324948654,1714458640263,-620.00000002,0.00030807,2]
[324948656,1714458640272,-620.00000043,0.00030807,2]
[324948658,1714458640281,-272.30788509,0.000309,7]
[324948659,1714458640291,-272.30788509,0.0003156,7]
[324948660,1714458640300,-272.30788509,0.0003168,7]
[324948661,1714458640310,-310.2348414,0.00031779,7]
[324948662,1714458640320,-119047.26336374,0.00031779,2]
[324948663,1714458640345,-230.18,0.00021918,2]
[324948664,1714458640355,-724.1852342,0.00031779,2]
[324948665,1714458640367,-4688.67068959,0.00031779,2]
[324948703,1714458643684,-59218.78804834,0.0001255,2]
[324948704,1714458643694,-29620.7,0.00031769,3]
[324948705,1714458643703,-198103.60748147,0.00031779,2]
[324948706,1714458643713,-500.0,0.0003178,2]
[324948707,1714458643722,-500.0,0.0003178,2]
[324948708,1714458643731,-500.0,0.0003178,2]
[324948709,1714458643740,-500.0,0.0003178,2]
[324948710,1714458643753,-500.0,0.0003178,2]
[324948711,1714458643763,-500.0,0.0003178,2]
[324948712,1714458643772,-500.0,0.0003178,2]
[324948713,1714458643782,-300.0,0.0003178,2]
[324948714,1714458643791,-540.06781762,0.0003178,2]
[324948715,1714458643800,-500.0,0.0003178,2]
[324948716,1714458643809,-500.0,0.0003178,2]
[324948717,1714458643819,-500.0,0.0003178,2]
[324948718,1714458643831,-500.0,0.0003178,2]
[324948719,1714458643841,-500.0,0.0003178,2]
[324948720,1714458643851,-500.0,0.0003178,2]
[324948721,1714458643860,-500.0,0.0003178,2]
[324948722,1714458643869,-500.0,0.0003178,2]
[324948723,1714458643879,-500.0,0.0003178,2]
[324948724,1714458643888,-500.0,0.0003178,2]
[324948725,1714458643897,-500.0,0.0003178,2]
[324948726,1714458643906,-500.0,0.0003178,2]
[324948727,1714458643915,-500.0,0.0003178,2]
[324948728,1714458643926,-500.0,0.0003178,2]
[324948729,1714458643935,-500.0,0.0003178,2]
[324948730,1714458643944,-500.0,0.0003178,2]
[324948731,1714458643953,-500.0,0.0003178,2]
[324948732,1714458643962,-546.35,0.0003178,2]
[324948733,1714458643971,-500.0,0.0003178,2]
[324948734,1714458643980,-182.13363266,0.0003178,2]
[324948735,1714458643989,-500.0,0.0003178,2]
[324948736,1714458643999,-500.0,0.0003178,2]
[324948737,1714458644008,-500.0,0.0003178,2]
[324948738,1714458644018,-227.7699957,0.0003178,2]
[324948739,1714458644027,-500.0,0.0003178,2]
[324948740,1714458644037,-500.0,0.0003178,2]
[324948741,1714458644046,-500.0,0.0003178,2]
[324948742,1714458644055,-500.0,0.0003178,2]
[324948743,1714458644065,-500.0,0.0003178,2]
[324948744,1714458644074,-500.0,0.0003178,2]
[324948745,1714458644083,-500.0,0.0003178,2]
[324948746,1714458644092,-500.0,0.0003178,2]
[324948747,1714458644102,-500.0,0.0003178,2]
[324948748,1714458644111,-500.0,0.0003178,2]
[324948749,1714458644120,-500.0,0.0003178,2]
[324948750,1714458644129,-500.0,0.0003178,2]
[324948751,1714458644139,-500.0,0.0003178,2]
[324948752,1714458644148,-500.0,0.0003178,2]
[324948753,1714458644157,-500.0,0.0003178,2]
[324948754,1714458644166,-500.0,0.0003178,2]
[324948755,1714458644176,-500.0,0.0003178,2]
[324948756,1714458644186,-500.0,0.0003178,2]
[324948757,1714458644196,-500.0,0.0003178,2]
[324948758,1714458644204,-500.0,0.0003178,2]
[324948759,1714458644214,-345.24510885,0.0003178,2]
[324948760,1714458644223,-500.0,0.0003178,2]
[324948761,1714458644232,-500.0,0.0003178,2]
[324948762,1714458644241,-500.0,0.0003178,2]
[324948763,1714458644253,-500.0,0.0003178,2]
[324948764,1714458644262,-500.0,0.0003178,2]
[324948765,1714458644271,-500.0,0.0003178,2]
[324948766,1714458644281,-500.0,0.0003178,2]
[324948767,1714458644290,-500.0,0.0003178,2]
[324948768,1714458644300,-500.0,0.0003178,2]
[324948769,1714458644309,-671.33,0.0003178,2]
[324948770,1714458644318,-500.0,0.0003178,2]
[324948771,1714458644327,-500.0,0.0003178,2]
[324948772,1714458644336,-593.61,0.0003178,2]
[324948773,1714458644345,-500.0,0.0003178,2]
[324948774,1714458644355,-500.0,0.0003178,2]
[324948775,1714458644364,-594.91,0.0003178,2]
[324948776,1714458644374,-500.0,0.0003178,2]
[324948777,1714458644383,-500.0,0.0003178,2]
[324948778,1714458644393,-500.0,0.0003178,2]
[324948779,1714458644402,-515.85,0.0003178,2]
[324948780,1714458644412,-323.14432132,0.0003178,2]
[324948781,1714458644421,-500.0,0.0003178,2]
[324948782,1714458644431,-501.85093738,0.0003178,2]
[324948783,1714458644440,-500.0,0.0003178,2]
[324948784,1714458644449,-500.0,0.0003178,2]
[324948785,1714458644458,-500.0,0.0003178,2]
[324948786,1714458644467,-500.0,0.0003178,2]
[324948787,1714458644477,-500.0,0.0003178,2]
[324948788,1714458644486,-500.0,0.0003178,2]
[324948789,1714458644496,-500.0,0.0003178,2]
[324948790,1714458644505,-518.38763873,0.0003178,2]
[324948791,1714458644514,-500.0,0.0003178,2]
[324948792,1714458644524,-500.0,0.0003178,2]
[324948793,1714458644533,-637.39,0.0003178,2]
[324948794,1714458644542,-500.0,0.0003178,2]
[324948795,1714458644552,-632.86,0.0003178,2]
[324948796,1714458644560,-500.0,0.0003178,2]
[324948797,1714458644570,-500.0,0.0003178,2]
[324948798,1714458644579,-500.0,0.0003178,2]
[324948799,1714458644589,-500.0,0.0003178,2]
[324948800,1714458644598,-500.0,0.0003178,2]
[324948801,1714458644607,-500.0,0.0003178,2]
[324948802,1714458644616,-500.0,0.0003178,2]
[324948803,1714458644625,-266.24564074,0.0003178,2]
[324948804,1714458644634,-500.0,0.0003178,2]
[324948805,1714458644643,-500.0,0.0003178,2]
[324948806,1714458644652,-500.0,0.0003178,2]
[324948807,1714458644661,-500.0,0.0003178,2]
[324948808,1714458644670,-520.5,0.0003178,2]
[324948809,1714458644679,-500.0,0.0003178,2]
[324948810,1714458644688,-500.0,0.0003178,2]
[324948811,1714458644697,-500.0,0.0003178,2]
[324948812,1714458644707,-500.0,0.0003178,2]
[324948813,1714458644746,-500.0,0.0003178,2]
[324948814,1714458644759,-500.0,0.0003178,2]
[324948815,1714458644768,-500.0,0.0003178,2]
[324948816,1714458644777,-500.0,0.0003178,2]
[324948817,1714458644787,-500.0,0.0003178,2]
[324948818,1714458644798,-542.51,0.0003178,2]
[324948819,1714458644807,-500.0,0.0003178,2]
[324948820,1714458644816,-503.26541033,0.0003178,2]
[324948821,1714458644826,-500.0,0.0003178,2]
[324948822,1714458644836,-500.0,0.0003178,2]
[324948823,1714458644846,-500.0,0.0003178,2]
[324948824,1714458644855,-500.0,0.0003178,2]
[324948825,1714458644864,-684.13,0.0003178,2]
[324948826,1714458644873,-500.0,0.0003178,2]
[324948827,1714458644882,-500.0,0.0003178,2]
[324948828,1714458644891,-500.0,0.0003178,2]
[324948829,1714458644900,-1829.17,0.0003178,2]
[324948830,1714458644909,-684.54,0.0003178,2]
[324948831,1714458644918,-500.0,0.0003178,2]
[324948832,1714458644928,-656.56,0.0003178,2]
[324948833,1714458644937,-500.0,0.0003178,2]
[324948834,1714458644946,-500.0,0.0003178,2]
[324948835,1714458644955,-500.0,0.0003178,2]
[324948836,1714458644965,-500.0,0.0003178,2]
[324948837,1714458644975,-913.14,0.0003178,2]
[324948838,1714458644984,-821.39,0.0003178,2]
[324948839,1714458644993,-500.0,0.0003178,2]
[324948840,1714458645003,-500.0,0.0003178,2]
[324948841,1714458645012,-500.0,0.0003178,2]
[324948842,1714458645021,-773.57,0.0003178,2]
[324948843,1714458645030,-500.0,0.0003178,2]
[324948844,1714458645039,-500.0,0.0003178,2]
[324948845,1714458645048,-500.0,0.0003178,2]
[324948846,1714458645058,-500.0,0.0003178,2]
[324948847,1714458645067,-500.0,0.0003178,2]